bitfinex/quotes_ETHUSD_20240722
["timestamp","ask_amount","ask_price","bid_price","bid_amount"]
[1721671625762,3.0,3480.6,3479.9,2.87363]
[1721671625763,2.87315,3480.5,3479.9,2.87363]
[1721671625957,3.0,3480.4,3479.6,3.688204]
[1721671626193,6.46055,3480.4,3479.7,2.8738]
[1721671626410,2.87332,3480.3,3479.7,2.8738]
[1721671628223,2.8734,3480.2,3479.6,2.87389]
[1721671628427,2.87334,3480.3,3479.4,2.87403]
[1721671628594,2.87334,3480.3,3479.3,2.3955]
[1721671628595,2.87352,3480.1,3479.5,2.87394]
[1721671628926,2.87352,3480.1,3479.4,2.87405]
[1721671629143,5.74705,3480.1,3479.4,2.87405]
[1721671629300,2.87352,3480.1,3479.4,2.87405]
[1721671629648,2.87353,3480.1,3479.3,2.3955]
[1721671629805,0.587334,3480.3,3479.0,2.87434]
[1721671630139,2.87382,3479.7,3479.0,2.87434]
[1721671630505,2.87385,3479.7,3479.0,2.87434]
[1721671630706,2.87394,3479.6,3479.0,2.87438]
[1721671630945,2.87394,3479.6,3478.8,5.22708]
[1721671630946,2.87394,3479.6,3478.8,2.3526]
[1721671631149,2.87394,3479.6,3478.8,5.22709]
[1721671631150,2.87402,3479.5,3478.8,5.22709]
[1721671631318,2.87402,3479.5,3478.9,2.87446]
[1721671631953,2.87402,3479.5,3478.8,5.22713]
[1721671632171,2.8742,3479.3,3478.3,2.2967]
[1721671632449,2.87415,3479.3,3478.6,2.87471]
[1721671633005,3.448803,3479.5,3478.6,2.87465]
[1721671633329,3.0,3479.9,3478.6,0.517135]
[1721671633524,5.87377,3479.8,3479.1,5.17095]
[1721671633833,2.87381,3479.7,3479.1,5.17095]
[1721671634033,3.0,3479.6,3479.1,2.87425]
[1721671634219,3.0,3479.6,3478.9,2.87442]
[1721671634404,2.87413,3479.4,3478.8,2.2816]
[1721671634611,2.87413,3479.4,3478.8,5.15614]
[1721671635632,5.87389,3479.6,3478.8,2.2816]
[1721671635829,2.87406,3479.4,3478.8,5.15613]
[1721671636249,5.87389,3479.6,3478.8,2.2816]
[1721671636406,2.87403,3479.5,3478.8,5.671778]
[1721671636601,2.87403,3479.5,3478.8,2.797228]
[1721671636802,2.87407,3479.4,3478.8,2.797228]
[1721671637050,2.87422,3479.2,3478.6,2.87466]
[1721671637349,2.87422,3479.2,3478.4,5.3386]
[1721671637646,2.87422,3479.2,3478.5,2.87476]
[1721671638051,3.0,3479.6,3478.4,5.3386]
[1721671638052,2.87431,3479.1,3478.4,5.3386]
[1721671638231,2.87422,3479.2,3478.6,2.8747]
[1721671638745,2.87402,3479.5,3478.6,2.8747]
[1721671638746,2.87415,3479.3,3478.6,2.8747]
[1721671639078,2.87415,3479.3,3478.6,3.696022]
[1721671639417,2.874,3479.5,3478.9,2.87447]
[1721671639735,3.0,3479.6,3479.0,2.87434]
[1721671639736,5.87389,3479.6,3479.0,2.87434]
[1721671640060,2.87389,3479.6,3479.0,2.87434]
[1721671640361,5.4952,3480.2,3479.1,2.3492]
[1721671640529,2.81327645,3480.8,3479.1,2.3492]
[1721671640530,0.35,3480.0,3479.6,2.87381]
[1721671640731,2.873,3480.7,3479.2,0.29239634]
[1721671641049,2.87336,3480.3,3479.7,2.87376]
[1721671641358,2.8732,3480.5,3479.8,2.8737]
[1721671641359,2.87321,3480.5,3479.8,2.8737]
[1721671641527,0.287321,3480.4,3479.8,2.8737]
[1721671641854,3.160571,3480.4,3479.8,2.8737]
[1721671642219,5.87332,3480.3,3479.7,2.87374]
[1721671642554,2.87315,3480.5,3479.9,2.87359]
[1721671642719,5.74605,3480.7,3479.9,2.87359]
[1721671642924,3.48221265,3480.6,3479.9,2.87357]
[1721671643126,3.48221265,3480.6,3480.0,2.87356]
[1721671644028,2.87308,3480.6,3480.0,2.87356]
[1721671644228,2.87308,3480.6,3479.8,2.87372]
[1721671644229,0.34527645,3480.8,3479.9,2.87364]
[1721671644435,2.87305,3480.7,3480.0,2.87355]
[1721671644666,5.87308,3480.6,3480.0,2.87355]
[1721671645162,2.87315,3480.5,3479.8,2.87364]
[1721671645320,2.87332,3480.3,3479.7,2.87373]
[1721671645521,2.87332,3480.3,3479.4,2.3283]
[1721671645820,2.87315,3480.5,3479.8,2.87372]
[1721671645821,2.8733,3480.4,3479.8,2.87372]
[1721671646024,2.87332,3480.3,3479.7,2.8738]
[1721671646220,2.87339,3480.2,3479.5,2.87389]
[1721671646540,2.87339,3480.2,3479.6,2.87384]
[1721671647528,2.87332,3480.3,3479.7,2.8738]
[1721671648467,2.87332,3480.3,3479.6,2.87389]
[1721671648646,2.8734,3480.2,3479.6,2.87389]
[1721671649123,2.87353,3480.1,3479.4,5.20228]
[1721671649324,2.87368,3479.9,3479.4,2.3283]
[1721671650057,2.3118,3480.3,3478.9,5.19223]
[1721671650265,2.87393,3479.6,3479.0,2.87438]
[1721671650551,2.87403,3479.5,3478.9,2.3178]
[1721671651265,2.87424,3479.2,3478.5,2.3156]
[1721671651621,2.87436,3479.1,3478.5,2.3156]
[1721671651841,2.87448,3478.9,3478.2,2.87499]
[1721671652051,5.87409,3479.4,3478.2,2.87499]
[1721671652363,2.87443,3479.0,3478.3,2.87492]
[1721671652533,2.87448,3478.9,3478.3,2.87492]
[1721671653143,2.8744,3479.0,3478.4,2.87488]
[1721671653542,2.87447,3478.9,3478.2,2.87499]
[1721671653847,2.87447,3478.9,3478.3,2.87495]
[1721671654625,2.87447,3478.9,3478.2,0.806566]
[1721671655734,2.87463,3478.7,3478.2,0.806566]
[1721671656336,2.87463,3478.7,3478.1,2.3156]
[1721671656337,2.8747,3478.7,3478.1,2.3156]
[1721671656841,2.87472,3478.6,3478.1,2.3156]
[1721671658131,1.081109,3479.3,3478.2,2.87504]
[1721671658132,2.87443,3479.0,3478.2,2.87504]
[1721671658332,2.87452,3478.9,3478.2,2.87498]
[1721671658633,5.74905,3478.9,3478.2,2.87498]
[1721671658860,5.74905,3478.9,3478.2,3.681557]
[1721671658861,2.87452,3478.9,3478.2,3.681557]
[1721671659061,2.87452,3478.9,3478.2,0.806577]
[1721671659265,2.8746,3478.8,3478.2,0.806577]
[1721671659467,2.87431,3479.1,3478.2,3.681567]
[1721671659650,2.87431,3479.1,3478.3,2.87491]
[1721671659651,2.87447,3478.9,3478.3,2.87491]
[1721671659853,2.87447,3478.9,3478.4,0.5997087]
[1721671660253,2.87447,3478.9,3478.2,3.681617]
[1721671660562,2.87435,3479.1,3478.3,2.87495]
[1721671660742,2.87452,3478.9,3478.2,0.806577]
[1721671661874,2.87466,3478.7,3478.2,0.806577]
[1721671662179,5.74907,3478.9,3478.2,0.806577]
[1721671662351,2.87467,3478.7,3478.1,2.3156]
[1721671662535,2.87424,3479.2,3478.1,2.3156]
[1721671662536,2.87476,3478.6,3478.1,2.3156]
[1721671662943,2.87456,3478.8,3478.2,2.87504]
[1721671663169,2.87456,3478.8,3478.1,2.3156]
[1721671663355,2.87456,3478.8,3478.1,5.1907]
[1721671663563,2.87456,3478.8,3478.2,0.806584]
[1721671663748,2.87463,3478.7,3478.2,0.806584]
[1721671664356,2.64273511,3478.7,3478.2,0.806584]
[1721671664680,2.87455,3478.8,3478.2,0.806584]
[1721671664868,2.87443,3479.0,3478.2,3.681584]
[1721671665068,5.87447,3478.9,3478.3,2.87492]
[1721671665647,3.0,3478.9,3478.4,2.87488]
[1721671665860,3.0,3478.9,3478.3,2.87492]
[1721671665861,2.87449,3478.9,3478.3,2.87492]
[1721671666282,2.87449,3478.9,3478.2,0.806584]
[1721671666487,2.87449,3478.9,3478.2,3.681624]
[1721671666784,2.87464,3478.7,3478.2,0.806584]
[1721671668185,3.0,3479.0,3478.4,2.87487]
[1721671668388,2.87433,3479.1,3478.4,2.87488]
[1721671668598,3.0,3479.0,3478.5,2.87475]
[1721671668949,3.0,3478.9,3478.5,2.87475]
[1721671669150,3.0,3479.0,3478.5,2.87475]
[1721671669361,3.0,3479.0,3478.6,2.87465]
[1721671669563,5.87423,3479.2,3478.6,2.87465]
[1721671669763,2.87439,3479.0,3478.4,2.87488]
[1721671669962,5.87451,3478.9,3478.3,5.74983]
[1721671670175,5.87451,3478.9,3478.3,2.87491]
[1721671670363,3.0,3478.9,3478.3,2.87491]
[1721671670565,3.0,3479.0,3478.5,2.87479]
[1721671671607,3.0,3479.0,3478.5,2.87474]
[1721671672767,3.0,3479.0,3478.3,2.87492]
[1721671672980,2.87448,3478.9,3478.3,5.74984]
[1721671673306,2.87448,3478.9,3478.3,2.87492]
[1721671673513,3.0,3479.0,3478.5,2.87475]
[1721671673811,2.87447,3478.9,3478.3,2.87496]
[1721671674019,2.87447,3478.9,3478.1,5.19067]
[1721671674020,2.87464,3478.7,3478.2,2.87502]
[1721671674310,2.87455,3478.8,3478.2,2.87498]
[1721671674669,5.74918,3478.8,3478.2,2.87498]
[1721671674879,2.87455,3478.8,3478.2,2.87498]
[1721671675318,2.87455,3478.8,3478.1,5.19073]
[1721671675319,2.87472,3478.6,3478.1,5.19073]
[1721671675604,2.87464,3478.7,3478.1,5.19067]
[1721671676171,2.87472,3478.6,3478.1,2.3156]
[1721671677370,2.87481,3478.5,3478.1,2.3156]
[1721671678667,2.87481,3478.5,3477.8,2.3262]
[1721671678668,2.87494,3478.4,3477.8,2.3262]
[1721671678882,2.87498,3478.3,3477.8,2.3262]
[1721671679418,2.87481,3478.5,3477.8,2.3262]
[1721671679419,2.87487,3478.5,3477.8,2.3262]
[1721671679727,2.87496,3478.3,3477.8,2.3262]
[1721671680221,2.87496,3478.3,3477.6,2.87554]
[1721671680518,2.87496,3478.3,3477.6,2.87549]
[1721671680832,2.87496,3478.3,3477.5,2.3707]
[1721671680833,2.87513,3478.1,3477.5,5.24632]
[1721671681314,2.87513,3478.1,3477.3,2.87578]
[1721671681503,2.87535,3477.9,3477.3,2.87578]
[1721671681912,5.75071,3477.9,3477.3,2.87578]
[1721671682226,2.87535,3477.9,3477.2,5.60814254]
[1721671682374,2.87542,3477.8,3477.2,5.60814254]
[1721671682577,2.87547,3477.7,3477.2,2.73227254]
[1721671683089,2.87547,3477.7,3477.2,2.432]
[1721671683476,2.87547,3477.7,3476.9,2.87606]
[1721671683477,3.163017,3477.7,3476.9,5.16661]
[1721671683890,3.163017,3477.7,3477.0,2.87602]
[1721671684103,3.163017,3477.7,3477.1,2.87595]
[1721671684478,2.87556,3477.6,3476.9,2.2905]
[1721671684695,2.87556,3477.6,3476.9,5.16656]
[1721671685033,3.0,3478.1,3476.9,5.16656]
[1721671685034,2.87538,3477.8,3477.1,2.87595]
[1721671685184,2.8753,3477.9,3477.3,2.87571]
[1721671685386,5.87516,3478.1,3477.2,2.87586]
[1721671685387,5.87538,3477.8,3477.2,2.87586]
[1721671685928,5.87538,3477.8,3477.0,5.75201]
[1721671686125,3.0,3477.8,3476.9,2.807156]
[1721671686418,3.0,3477.8,3477.2,2.87582]
[1721671686625,5.87542,3477.8,3477.2,2.87582]
[1721671686837,2.87547,3477.7,3477.0,2.87596]
[1721671686994,2.87547,3477.7,3477.1,2.87595]
[1721671688005,2.87556,3477.6,3477.0,2.87602]
[1721671688206,3.0,3477.8,3476.9,2.2905]
[1721671688207,3.0,3477.8,3477.1,2.87595]
[1721671688411,5.29517,3478.2,3477.1,2.87595]
[1721671688412,2.87555,3477.6,3477.1,2.87595]
[1721671688596,3.17548,3477.7,3477.1,2.87595]
[1721671689337,2.87554,3477.6,3476.9,8.04265]
[1721671689545,2.87539,3477.8,3476.9,5.16658]
[1721671689692,3.0,3477.7,3476.9,2.2905]
[1721671689892,3.0,3477.7,3477.2,2.87583]
[1721671690093,3.75045,3477.8,3477.2,2.87583]
[1721671690094,9.6259,3477.8,3477.2,2.87583]
[1721671690439,2.87547,3477.7,3477.0,2.87596]
[1721671690808,2.87567,3477.5,3476.9,2.2905]
[1721671691138,2.87571,3477.4,3476.9,2.2905]
[1721671691494,5.87539,3477.8,3476.9,2.2905]
[1721671691734,5.87539,3477.8,3477.2,2.87583]
[1721671691934,5.87539,3477.8,3477.0,2.87599]
[1721671692094,2.87546,3477.7,3477.0,2.87598]
[1721671692300,2.87559,3477.6,3477.0,2.87598]
[1721671692929,5.7512,3477.6,3477.0,2.87598]
[1721671693235,3.75071,3477.6,3477.0,2.87598]
[1721671693738,2.87563,3477.5,3476.9,5.16659]
[1721671694533,2.87571,3477.4,3476.8,2.8762]
[1721671694700,0.87512,3477.6,3476.9,2.87611]
[1721671694701,0.675059,3477.5,3476.9,2.87611]
[1721671695042,3.550699,3477.5,3476.9,2.87611]
[1721671695399,3.550699,3477.5,3476.7,2.87621]
[1721671695400,0.675059,3477.5,3476.7,2.87621]
[1721671695598,2.87571,3477.4,3476.8,2.87616]
[1721671696536,3.550679,3477.5,3476.9,2.87611]
[1721671697304,3.550679,3477.5,3476.7,2.87621]
[1721671697504,3.550709,3477.5,3476.8,2.87613]
[1721671697735,3.550709,3477.5,3476.8,2.8762]
[1721671697895,3.550709,3477.5,3476.5,2.3601]
[1721671698096,3.550709,3477.5,3476.9,2.87611]
[1721671699396,2.87571,3477.4,3476.8,2.87619]
[1721671700194,2.87558,3477.6,3477.0,2.87599]
[1721671700399,2.87558,3477.6,3476.6,2.87632]
[1721671700600,2.87572,3477.4,3476.8,2.8762]
[1721671700833,2.87558,3477.6,3476.9,2.87608]
[1721671701136,2.87571,3477.4,3476.8,2.87616]
[1721671701499,3.0,3477.8,3476.8,2.87615]
[1721671701500,2.87563,3477.5,3476.8,2.87615]
[1721671701705,2.87563,3477.5,3476.9,2.87607]
[1721671702046,2.87573,3477.4,3476.7,5.75249]
[1721671702371,2.87573,3477.4,3476.8,2.87616]
[1721671703547,2.87577,3477.4,3476.8,2.87619]
[1721671704255,2.8758,3477.3,3476.7,2.87624]
[1721671704813,2.87571,3477.4,3476.8,2.87616]
[1721671705919,2.87563,3477.5,3476.5,2.883769]
[1721671706133,2.87563,3477.5,3476.8,2.87615]
[1721671706343,2.87576,3477.4,3476.8,2.87615]
[1721671707041,2.87577,3477.4,3476.8,2.87615]
[1721671707751,2.87563,3477.5,3476.8,2.87615]
[1721671708050,2.87563,3477.5,3476.9,2.87611]
[1721671708745,2.87543,3477.8,3476.9,3.451316]
[1721671708952,3.0,3477.7,3477.1,2.8759]
[1721671709197,3.0,3477.7,3477.3,2.87574]
[1721671709476,5.87539,3477.8,3477.1,2.87589]
[1721671709690,5.87539,3477.8,3477.2,2.87586]
[1721671709977,2.87546,3477.7,3477.2,2.87586]
[1721671710148,2.87546,3477.7,3477.0,2.87596]
[1721671710361,3.0,3477.8,3477.0,2.87596]
[1721671710565,5.87542,3477.8,3477.2,2.87586]
[1721671710983,2.87547,3477.7,3477.2,2.87586]
[1721671711565,2.87547,3477.7,3477.0,2.87596]
[1721671711763,2.87556,3477.6,3477.0,2.87596]
[1721671711949,6.17542,3477.8,3477.0,2.87596]
[1721671712271,2.87556,3477.6,3477.0,2.87596]
[1721671712466,6.17542,3477.8,3477.1,2.87594]
[1721671712693,6.17542,3477.8,3477.0,2.87596]
[1721671713344,2.87558,3477.6,3477.0,2.87596]
[1721671713747,2.87558,3477.6,3477.1,2.87595]
[1721671714498,2.87558,3477.6,3477.0,2.87604]
[1721671715778,2.87563,3477.5,3477.0,2.87604]
[1721671716394,2.87562,3477.5,3476.8,5.22273]
[1721671716547,2.87571,3477.4,3476.8,5.22273]
[1721671717946,2.87555,3477.6,3476.9,2.87607]
[1721671718253,2.87555,3477.6,3477.0,2.87597]
[1721671718579,2.87555,3477.6,3476.8,5.22274]
[1721671718878,3.0,3477.8,3477.2,2.87585]
[1721671719040,2.87527,3478.0,3477.2,6.3268]
[1721671719041,5.8753,3477.9,3477.2,6.3268]
[1721671719241,3.0,3477.9,3477.2,2.8758]
[1721671719576,2.87543,3477.8,3477.2,2.8758]
[1721671719782,2.87543,3477.8,3477.2,5.75161]
[1721671719783,3.0,3477.7,3477.2,5.75161]
[1721671719947,3.0,3477.7,3477.2,2.8758]
[1721671721791,5.87547,3477.7,3477.0,2.87598]
[1721671722091,3.0,3477.7,3476.8,2.3466]
[1721671722253,5.8754,3477.8,3477.2,2.87582]
[1721671723646,2.87546,3477.7,3477.2,2.87582]
[1721671724190,3.0,3477.8,3477.3,2.87578]
[1721671724402,0.14631413,3477.7,3477.3,2.87578]
[1721671724600,3.0,3477.8,3477.4,2.4262]
[1721671724893,3.0,3478.0,3477.7,2.8754]
[1721671725105,2.49459385,3478.8,3478.0,2.87521]
[1721671725106,0.35,3478.4,3478.0,2.87521]
[1721671725420,2.2823,3479.0,3478.0,5.30141]
[1721671725421,0.14629031,3478.3,3478.0,5.30141]
[1721671725555,4.98634548,3478.9,3478.2,2.875]
[1721671725556,2.8746,3478.8,3478.2,2.875]
[1721671725757,2.8746,3478.8,3478.0,2.4262]
[1721671725758,0.14628623,3478.7,3478.1,2.87507]
[1721671726003,0.14628623,3478.6,3478.1,0.530127]
[1721671726173,2.87443,3479.0,3478.3,2.87488]
[1721671726493,2.11182548,3479.2,3478.4,2.87485]
[1721671726494,3.02075973,3478.9,3478.4,2.87485]
[1721671726697,2.4229,3479.3,3478.2,2.87498]
[1721671726698,3.02087973,3478.8,3478.2,2.87498]
[1721671726899,3.02087973,3478.8,3478.0,2.4262]
[1721671726900,5.74922,3478.8,3478.1,2.87509]
[1721671727211,2.87455,3478.8,3478.0,5.30137]
[1721671727359,2.87442,3479.0,3478.2,2.87503]
[1721671727553,2.8746,3478.8,3478.2,2.87503]
[1721671727868,2.8746,3478.8,3478.0,5.30137]
[1721671727869,2.87473,3478.6,3478.0,5.30137]
[1721671728122,2.87482,3478.5,3478.0,2.4262]
[1721671728303,2.87476,3478.6,3478.0,5.3014]
[1721671728502,2.87463,3478.7,3478.0,2.4262]
[1721671728704,2.8748,3478.5,3478.0,2.4262]
[1721671729055,0.3991778,3478.7,3478.0,5.3014]
[1721671729208,2.87473,3478.6,3478.0,5.3014]
[1721671729608,3.2738078,3478.7,3478.1,2.87513]
[1721671730002,2.87458,3478.8,3478.2,2.87504]
[1721671730213,2.87443,3479.0,3478.0,2.4262]
[1721671730420,3.0,3478.9,3478.6,2.4671]
[1721671730739,3.0,3479.0,3478.6,2.4671]
[1721671731254,5.87443,3479.0,3478.6,2.4671]
[1721671731459,2.8745,3478.9,3478.6,2.4671]
[1721671731665,3.0,3478.8,3478.4,2.87487]
[1721671731846,3.0,3478.8,3478.3,2.4671]
[1721671732032,3.0,3478.8,3478.1,2.87508]
[1721671732223,2.87473,3478.6,3478.0,5.18415]
[1721671732733,2.87464,3478.7,3478.1,2.87507]
[1721671733041,2.87472,3478.6,3478.0,5.18421]
[1721671733445,2.87462,3478.8,3478.1,2.87508]
[1721671733656,2.87471,3478.7,3478.1,2.87508]
[1721671734520,2.87472,3478.6,3478.0,2.309]
[1721671734719,2.87488,3478.4,3478.0,2.309]
[1721671736064,2.87477,3478.6,3478.0,2.309]
[1721671736281,2.87488,3478.4,3478.0,2.309]
[1721671736559,2.8748,3478.5,3478.0,2.309]
[1721671737263,2.87488,3478.4,3478.0,2.309]
[1721671737474,2.8747,3478.7,3478.1,2.87506]
[1721671738067,2.87455,3478.8,3478.2,2.875]
[1721671739125,2.87455,3478.8,3478.3,2.87495]
[1721671739321,2.87451,3478.9,3478.3,2.87495]
[1721671739551,3.0,3478.8,3478.4,2.87481]
[1721671739746,3.0,3478.9,3478.4,2.87481]
[1721671740161,3.0,3478.9,3478.5,2.87479]
[1721671740568,3.0,3479.1,3478.5,2.87479]
[1721671740918,2.87442,3479.0,3478.4,2.3834]
[1721671741236,3.0,3479.1,3478.4,5.25828]
[1721671741237,5.87447,3478.9,3478.4,5.25828]
[1721671741434,3.0,3478.8,3478.4,5.25828]
[1721671742992,3.0,3478.8,3478.5,2.87476]
[1721671743164,5.87432,3479.1,3478.5,2.87476]
[1721671743370,3.0,3479.1,3478.4,2.3834]
[1721671743682,3.0,3479.3,3479.0,5.25776]
[1721671743856,2.7933,3480.0,3479.0,2.3834]
[1721671744028,10.389,3480.4,3479.5,2.87389]
[1721671744029,5.31657,3480.4,3479.5,2.87389]
[1721671744363,2.87329,3480.4,3479.7,2.87376]
[1721671744539,2.87303,3480.7,3479.9,2.87362]
[1721671744871,2.87308,3480.6,3480.0,2.87353]
[1721671745225,2.87286,3480.9,3480.1,2.87345]
[1721671745226,2.873,3480.7,3480.1,2.87345]
[1721671745421,2.873,3480.7,3479.6,2.3834]
[1721671745422,2.87337,3480.3,3479.6,2.3834]
[1721671745626,2.87326,3480.4,3479.8,2.87367]
[1721671745931,0.574586,3480.7,3480.1,2.87346]
[1721671746157,3.447576,3480.7,3480.1,2.87346]
[1721671746458,2.87306,3480.6,3479.9,2.87356]
[1721671746660,2.87323,3480.4,3479.8,2.87372]
[1721671746890,2.87323,3480.4,3479.8,5.7474]
[1721671747189,0.6320586,3480.5,3480.0,2.87351]
[1721671747348,3.0,3480.5,3479.6,2.3834]
[1721671747549,3.0,3480.7,3480.3,2.87324]
[1721671747806,2.8726,3481.2,3480.3,5.16228]
[1721671747954,2.87227,3481.6,3480.6,2.87303]
[1721671748148,9.828,3482.3,3479.7,2.468]
[1721671748149,2.87222,3481.7,3480.9,2.289]
[1721671748448,2.87222,3481.7,3481.0,2.87268]
[1721671748449,0.287222,3481.6,3481.0,2.87268]
[1721671748649,0.287222,3481.6,3481.1,2.87264]
[1721671749081,0.287222,3481.6,3481.2,2.87251]
[1721671749297,2.87201,3481.9,3481.0,2.87272]
[1721671749588,2.87221,3481.7,3481.0,2.87272]
[1721671750083,2.87242,3481.4,3480.9,2.289]
[1721671750289,2.87249,3481.3,3480.9,2.289]
[1721671750505,2.87258,3481.2,3480.5,5.25878]
[1721671750700,2.87241,3481.4,3480.6,2.87304]
[1721671750848,3.159701,3481.4,3480.6,2.87304]
[1721671751045,2.87261,3481.2,3480.5,5.25879]
[1721671751270,2.87261,3481.2,3480.6,2.87305]
[1721671751479,0.287241,3481.4,3480.6,2.87305]
[1721671751646,2.87253,3481.3,3480.6,2.87305]
[1721671752864,2.87229,3481.6,3480.8,2.87282]
[1721671753051,2.87229,3481.6,3480.5,2.3857]
[1721671753052,5.87212,3481.8,3481.2,2.87252]
[1721671753398,0.587212,3481.7,3481.4,2.3857]
[1721671753552,2.8718,3482.2,3481.5,2.87227]
[1721671753757,12.70087,3482.7,3481.5,2.87227]
[1721671753976,2.87187,3482.1,3481.4,5.25809]
[1721671754183,3.446224,3482.1,3481.4,5.25809]
[1721671754400,3.446224,3482.1,3481.5,2.8723]
[1721671754896,8.51113185,3483.1,3481.8,2.87207]
[1721671754897,2.87157,3482.5,3481.8,2.87207]
[1721671755220,2.3319,3483.1,3481.4,2.3857]
[1721671755221,2.3319,3483.1,3481.9,2.87198]
[1721671755526,2.87103,3483.1,3482.0,2.3019]
[1721671755817,2.2756,3483.5,3482.4,2.87158]
[1721671756121,2.87112,3483.0,3482.4,2.87158]
[1721671756281,2.8706,3483.6,3482.9,2.8711]
[1721671756472,2.8706,3483.6,3482.9,2.87115]
[1721671756806,2.87077,3483.4,3482.7,2.87127]
[1721671757402,2.87092,3483.2,3482.6,2.87139]
[1721671757986,5.74191,3483.2,3482.6,2.87139]
[1721671758183,3.447611,3483.2,3482.6,2.87139]
[1721671758383,6.318601,3483.2,3482.5,2.4825]
[1721671758587,3.447611,3483.2,3482.5,5.35399]
[1721671758999,3.447611,3483.2,3482.5,2.4825]
[1721671759187,2.87113,3483.0,3482.5,2.4825]
[1721671759394,3.447641,3483.2,3482.5,5.35392]
[1721671759603,3.447641,3483.2,3482.6,2.8714]
[1721671759798,2.87073,3483.5,3482.8,2.87117]
[1721671760434,2.87061,3483.6,3482.9,2.8711]
[1721671760629,2.87047,3483.8,3482.9,2.8711]
[1721671760921,5.87055,3483.7,3483.0,2.87102]
[1721671761524,2.87051,3483.7,3483.0,2.87104]
[1721671761822,2.87055,3483.7,3483.0,2.87103]
[1721671762224,2.87055,3483.7,3483.0,5.74204]
[1721671762520,2.87055,3483.7,3483.0,6.19371964]
[1721671762727,2.87038,3483.9,3483.0,3.32270964]
[1721671762728,2.87037,3483.9,3483.0,3.32270964]
[1721671762898,0.00185597,3483.3,3483.0,3.32270964]
[1721671763092,0.00185597,3483.3,3483.0,2.87101]
[1721671764828,0.00185597,3483.3,3482.8,2.87121]
[1721671765012,2.87269597,3483.3,3482.6,2.87138]
[1721671765212,2.87269597,3483.3,3482.7,2.87132]
[1721671765389,2.87269597,3483.3,3482.5,2.4825]
[1721671765597,2.87105,3483.1,3482.5,2.4825]
[1721671766130,2.87108,3483.0,3482.5,2.4825]
[1721671766856,0.00185597,3483.3,3482.6,2.87136]
[1721671766995,2.87271597,3483.3,3482.6,2.87135]
[1721671767933,2.87107,3483.1,3482.5,2.4825]
[1721671768232,2.87269597,3483.3,3482.5,5.35394]
[1721671768432,2.87107,3483.1,3482.5,2.4825]
[1721671768635,2.87114,3483.0,3482.5,2.4825]
[1721671768811,2.87107,3483.1,3482.5,2.4825]
[1721671769699,2.87106,3483.1,3482.5,2.4825]
[1721671769903,2.87106,3483.1,3482.5,5.35397]
[1721671770133,2.87109,3483.0,3482.5,2.4825]
[1721671773313,2.871,3483.2,3482.5,2.4825]
[1721671773624,2.87076,3483.4,3482.8,2.87122]
[1721671773825,2.87076,3483.4,3482.7,2.87133]
[1721671773826,2.87092,3483.2,3482.7,2.87133]
[1721671774329,2.87038,3483.9,3483.3,2.87078]
[1721671774643,2.87038,3483.9,3483.4,2.87075]
[1721671775013,2.87018,3484.1,3483.4,2.87068]
[1721671775225,2.87032,3484.0,3483.3,0.287078]
[1721671775428,2.87032,3484.0,3483.3,3.157868]
[1721671775728,2.87035,3483.9,3483.3,3.157868]
[1721671775908,2.87035,3483.9,3483.2,2.87087]
[1721671775909,2.87026,3484.0,3483.4,2.8707]
[1721671776107,2.87026,3484.0,3482.9,2.87116]
[1721671776329,5.74058,3484.0,3483.4,2.87075]
[1721671776607,5.86985,3484.5,3483.4,2.87075]
[1721671776827,3.0,3484.4,3483.4,2.87075]
[1721671777028,3.0,3484.4,3483.2,2.87089]
[1721671777029,2.87031,3484.0,3483.2,2.87085]
[1721671777249,0.921985,3484.3,3482.8,5.26138]
[1721671777250,2.87055,3483.7,3482.8,5.26138]
[1721671777399,2.87055,3483.7,3483.1,2.87098]
[1721671777400,2.87053,3483.7,3483.1,2.87098]
[1721671778259,5.74111,3483.7,3483.1,2.87098]
[1721671778550,2.87059,3483.6,3483.0,2.87108]
[1721671778709,2.87059,3483.6,3483.1,2.87099]
[1721671779545,2.87059,3483.6,3483.0,2.87108]
[1721671779717,2.87072,3483.5,3482.9,2.87116]
[1721671779921,2.87072,3483.5,3483.0,2.87108]
[1721671780133,2.87059,3483.6,3483.0,2.87103]
[1721671780347,2.87062,3483.6,3483.0,2.87108]
[1721671780651,5.74129,3483.6,3483.0,2.87108]
[1721671780824,2.87062,3483.6,3483.0,5.74211]
[1721671781026,5.74096,3483.8,3483.0,2.87103]
[1721671781269,2.87031,3484.0,3483.2,2.87088]
[1721671781560,0.520421,3483.9,3483.2,2.87088]
[1721671781728,2.87055,3483.7,3483.1,2.871]
[1721671782055,2.87031,3484.0,3483.4,2.87071]
[1721671782266,2.87031,3484.0,3483.5,2.498]
[1721671783655,2.87013,3484.2,3483.6,2.87051]
[1721671783953,2.86998,3484.4,3483.8,2.87037]
[1721671784320,2.86979,3484.6,3484.0,2.87025]
[1721671784761,2.86979,3484.6,3484.0,2.8702]
[1721671785050,2.86964,3484.8,3483.6,0.536851]
[1721671785227,2.86974,3484.7,3484.0,2.87021]
[1721671785426,2.86974,3484.7,3483.9,2.87029]
[1721671785427,2.86981,3484.6,3483.9,2.87029]
[1721671785631,2.86981,3484.6,3483.7,2.87044]